[Event "Titled Tuesday Blitz May 16 Late 2023"]
[White "Stead, Kerry"]
[Black "Yeritsyan, Hayk"]
[WhiteFideId "3202577"]
[BlackFideId "13307320"]
[WhiteElo "1997"]
[BlackElo "2431"]
[Result "0-1"]
[Round "04"]
[TimeControl "180+2"]
[Date "2023.05.16"]
[WhiteClock "0:00:00"]
[BlackClock "0:01:31"]

1. d4 {[%clk 0:02:23]}  d5 {[%clk 0:02:59]} 2. e4 {[%clk 0:02:18]}  c6 {[%clk 0:02:56]} 3. Nc3 {[%clk 0:02:12]}  dxe4 {[%clk 0:02:55]} 4. f3 {[%clk 0:02:08]}  e3 {[%clk 0:02:55]} 5. Bxe3 {[%clk 0:01:54]}  Nf6 {[%clk 0:02:55]} 6. Bd3 {[%clk 0:01:53]}  Nd5 {[%clk 0:02:48]} 7. Nxd5 {[%clk 0:01:50]}  cxd5 {[%clk 0:02:49]} 8. c3 {[%clk 0:01:50]}  Nc6 {[%clk 0:02:49]} 9. Ne2 {[%clk 0:01:49]}  e6 {[%clk 0:02:48]} 10. O-O {[%clk 0:01:44]}  Bd6 {[%clk 0:02:49]} 11. Bf4 {[%clk 0:01:39]}  O-O {[%clk 0:02:46]} 12. Bxd6 {[%clk 0:01:32]}  Qxd6 {[%clk 0:02:47]} 13. Re1 {[%clk 0:01:28]}  Bd7 {[%clk 0:02:46]} 14. Qd2 {[%clk 0:01:02]}  Ne7 {[%clk 0:02:45]} 15. Nf4 {[%clk 0:00:57]}  Qb6 {[%clk 0:02:41]} 16. Kh1 {[%clk 0:00:55]}  Bb5 {[%clk 0:02:41]} 17. Bxb5 {[%clk 0:00:53]}  Qxb5 {[%clk 0:02:41]} 18. Nd3 {[%clk 0:00:53]}  Nc6 {[%clk 0:02:38]} 19. Ne5 {[%clk 0:00:51]}  Nxe5 {[%clk 0:02:38]} 20. Rxe5 {[%clk 0:00:50]}  Rac8 {[%clk 0:02:38]} 21. Rae1 {[%clk 0:00:49]}  Qc4 {[%clk 0:02:38]} 22. h3 {[%clk 0:00:45]}  Qxa2 {[%clk 0:02:37]} 23. Rh5 {[%clk 0:00:36]}  Qa6 {[%clk 0:02:03]} 24. Qf4 {[%clk 0:00:33]}  f5 {[%clk 0:02:00]} 25. Qh4 {[%clk 0:00:25]}  h6 {[%clk 0:01:54]} 26. Qe7 {[%clk 0:00:22]}  Rce8 {[%clk 0:01:46]} 27. Qc7 {[%clk 0:00:18]}  Qb6 {[%clk 0:01:40]} 28. Qxb6 {[%clk 0:00:16]}  axb6 {[%clk 0:01:40]} 29. Rh4 {[%clk 0:00:00]}  Kf7 {[%clk 0:01:31]} 0-1


[Site "https://www.chess.com"]

[Event "Titled Tuesday Blitz May 16 Late 2023"]
[White "Ziatdinov, Raset"]
[Black "Curtis, John"]
[WhiteFideId "2015323"]
[BlackFideId "3200256"]
[WhiteElo "2220"]
[BlackElo "2203"]
[Result "1/2-1/2"]
[Round "04"]
[TimeControl "180+2"]
[Date "2023.05.16"]
[WhiteClock "0:01:51"]
[BlackClock "0:02:45"]

1. e4 {[%clk 0:02:56]}  e5 {[%clk 0:02:59]} 2. Nf3 {[%clk 0:02:55]}  Nc6 {[%clk 0:02:57]} 3. Bb5 {[%clk 0:02:52]}  a6 {[%clk 0:02:57]} 4. Ba4 {[%clk 0:02:52]}  Nf6 {[%clk 0:02:56]} 5. O-O {[%clk 0:02:52]}  b5 {[%clk 0:02:51]} 6. Bb3 {[%clk 0:02:52]}  Be7 {[%clk 0:02:51]} 7. Re1 {[%clk 0:02:51]}  O-O {[%clk 0:02:51]} 8. c3 {[%clk 0:02:52]}  d5 {[%clk 0:02:50]} 9. exd5 {[%clk 0:02:50]}  e4 {[%clk 0:02:47]} 10. dxc6 {[%clk 0:02:47]}  exf3 {[%clk 0:02:47]} 11. Qxf3 {[%clk 0:02:43]}  Bg4 {[%clk 0:02:47]} 12. Qe3 {[%clk 0:02:42]}  Re8 {[%clk 0:02:46]} 13. d4 {[%clk 0:01:51]}  Bd6 {[%clk 0:02:45]} 1/2-1/2


[Site "https://www.chess.com"]

[Event "Titled Tuesday Blitz May 16 Late 2023"]
[White "Dmitriev, Sergey"]
[Black "Lozano Ramirez, Nestor Favian"]
[WhiteFideId "14101785"]
[BlackFideId "4412672"]
[WhiteElo "2132"]
[BlackElo "2254"]
[Result "0-1"]
[Round "04"]
[TimeControl "180+2"]
[Date "2023.05.16"]
[WhiteClock "0:00:08"]
[BlackClock "0:00:51"]

1. d4 {[%clk 0:03:00]}  g6 {[%clk 0:03:00]} 2. Bf4 {[%clk 0:02:59]}  Bg7 {[%clk 0:03:01]} 3. Nf3 {[%clk 0:02:59]}  d6 {[%clk 0:03:01]} 4. e3 {[%clk 0:02:59]}  Nd7 {[%clk 0:03:02]} 5. c3 {[%clk 0:02:58]}  e5 {[%clk 0:03:02]} 6. dxe5 {[%clk 0:02:57]}  dxe5 {[%clk 0:03:02]} 7. Bg3 {[%clk 0:02:57]}  Qe7 {[%clk 0:03:02]} 8. e4 {[%clk 0:02:55]}  Ngf6 {[%clk 0:03:02]} 9. Bd3 {[%clk 0:02:54]}  O-O {[%clk 0:03:02]} 10. O-O {[%clk 0:02:54]}  a5 {[%clk 0:03:00]} 11. a4 {[%clk 0:02:53]}  Nh5 {[%clk 0:02:58]} 12. Bh4 {[%clk 0:02:51]}  Bf6 {[%clk 0:02:57]} 13. Bxf6 {[%clk 0:02:49]}  Qxf6 {[%clk 0:02:58]} 14. Nbd2 {[%clk 0:02:47]}  Nc5 {[%clk 0:02:58]} 15. Bc2 {[%clk 0:02:45]}  Nf4 {[%clk 0:02:58]} 16. b4 {[%clk 0:02:29]}  Nce6 {[%clk 0:02:53]} 17. bxa5 {[%clk 0:02:26]}  Rd8 {[%clk 0:02:49]} 18. Qe1 {[%clk 0:02:24]}  Rxa5 {[%clk 0:02:15]} 19. Nc4 {[%clk 0:02:22]}  Rc5 {[%clk 0:02:15]} 20. Ne3 {[%clk 0:02:15]}  c6 {[%clk 0:02:04]} 21. Ng4 {[%clk 0:01:56]}  Qg7 {[%clk 0:02:02]} 22. Qe3 {[%clk 0:01:43]}  Nxg2 {[%clk 0:02:00]} 23. Kxg2 {[%clk 0:01:38]}  Nf4+ {[%clk 0:02:00]} 24. Kh1 {[%clk 0:01:36]}  Bxg4 {[%clk 0:01:59]} 25. Rg1 {[%clk 0:01:14]}  Bxf3+ {[%clk 0:01:52]} 26. Qxf3 {[%clk 0:01:14]}  Rd2 {[%clk 0:01:51]} 27. Bb3 {[%clk 0:01:11]}  Rb2 {[%clk 0:01:42]} 28. Rab1 {[%clk 0:01:04]}  Rxb1 {[%clk 0:01:34]} 29. Rxb1 {[%clk 0:01:04]}  Qf8 {[%clk 0:01:33]} 30. Bd1 {[%clk 0:00:59]}  Qe7 {[%clk 0:01:31]} 31. Bb3 {[%clk 0:00:52]}  Ra5 {[%clk 0:01:24]} 32. Rd1 {[%clk 0:00:45]}  Ra8 {[%clk 0:01:24]} 33. Qg4 {[%clk 0:00:38]}  Rd8 {[%clk 0:01:24]} 34. Rxd8+ {[%clk 0:00:36]}  Qxd8 {[%clk 0:01:25]} 35. Qf3 {[%clk 0:00:30]}  Qd2 {[%clk 0:01:21]} 36. Qe3 {[%clk 0:00:26]}  Qb2 {[%clk 0:01:16]} 37. Bd1 {[%clk 0:00:23]}  Qa1 {[%clk 0:01:16]} 38. Qd2 {[%clk 0:00:23]}  Qb1 {[%clk 0:01:11]} 39. h3 {[%clk 0:00:21]}  Qxe4+ {[%clk 0:01:05]} 40. f3 {[%clk 0:00:22]}  Qc4 {[%clk 0:01:01]} 41. Qd8+ {[%clk 0:00:21]}  Kg7 {[%clk 0:00:59]} 42. Kh2 {[%clk 0:00:17]}  Qxc3 {[%clk 0:00:58]} 43. Qd6 {[%clk 0:00:11]}  Qb2+ {[%clk 0:00:52]} 44. Kg3 {[%clk 0:00:08]}  Qg2+ {[%clk 0:00:52]} 45. Kh4 {[%clk 0:00:08]}  g5# {[%clk 0:00:51]} 0-1


[Site "https://www.chess.com"]

[Event "Titled Tuesday Blitz May 16 Late 2023"]
[White "dorpato"]
[Black "Estrada Nieto, Julian"]
[BlackFideId "5101018"]
[WhiteElo "2010"]
[BlackElo "2161"]
[Result "1-0"]
[Round "04"]
[TimeControl "180+2"]
[Date "2023.05.16"]
[WhiteClock "0:01:31"]
[BlackClock "0:00:48"]

1. e4 {[%clk 0:02:59]}  e5 {[%clk 0:02:59]} 2. d4 {[%clk 0:02:58]}  exd4 {[%clk 0:02:58]} 3. Nf3 {[%clk 0:02:58]}  Nc6 {[%clk 0:02:58]} 4. c3 {[%clk 0:02:58]}  d5 {[%clk 0:02:58]} 5. exd5 {[%clk 0:02:57]}  Qxd5 {[%clk 0:02:58]} 6. cxd4 {[%clk 0:02:58]}  Bb4+ {[%clk 0:02:58]} 7. Nc3 {[%clk 0:02:58]}  Bg4 {[%clk 0:02:58]} 8. Be2 {[%clk 0:02:57]}  Bxf3 {[%clk 0:02:54]} 9. Bxf3 {[%clk 0:02:57]}  Qc4 {[%clk 0:02:54]} 10. Qb3 {[%clk 0:02:47]}  Qxb3 {[%clk 0:02:45]} 11. axb3 {[%clk 0:02:47]}  Nxd4 {[%clk 0:02:34]} 12. Bxb7 {[%clk 0:02:45]}  Nc2+ {[%clk 0:02:24]} 13. Kd1 {[%clk 0:02:45]}  Nxa1 {[%clk 0:02:24]} 14. Bxa8 {[%clk 0:02:42]}  Nxb3 {[%clk 0:02:19]} 15. Bf4 {[%clk 0:02:34]}  Bxc3 {[%clk 0:02:11]} 16. Bc6+ {[%clk 0:02:29]}  Kd8 {[%clk 0:02:08]} 17. bxc3 {[%clk 0:02:29]}  Ne7 {[%clk 0:02:08]} 18. Bf3 {[%clk 0:02:22]}  Kc8 {[%clk 0:01:50]} 19. Kc2 {[%clk 0:02:20]}  Nc5 {[%clk 0:01:48]} 20. Ra1 {[%clk 0:02:13]}  Kb8 {[%clk 0:01:21]} 21. Be3 {[%clk 0:02:11]}  Nd7 {[%clk 0:01:10]} 22. Rxa7 {[%clk 0:02:04]}  c6 {[%clk 0:01:03]} 23. Rxd7 {[%clk 0:02:03]}  Re8 {[%clk 0:01:01]} 24. Bc5 {[%clk 0:01:55]}  Nd5 {[%clk 0:00:59]} 25. Bxd5 {[%clk 0:01:53]}  cxd5 {[%clk 0:00:59]} 26. Rxf7 {[%clk 0:01:50]}  g5 {[%clk 0:00:58]} 27. Rxh7 {[%clk 0:01:49]}  Re1 {[%clk 0:00:54]} 28. Rd7 {[%clk 0:01:42]}  Kc8 {[%clk 0:00:54]} 29. Rxd5 {[%clk 0:01:41]}  Kc7 {[%clk 0:00:55]} 30. Rxg5 {[%clk 0:01:41]}  Kc6 {[%clk 0:00:55]} 31. Be3 {[%clk 0:01:40]}  Ra1 {[%clk 0:00:53]} 32. h4 {[%clk 0:01:40]}  Kd6 {[%clk 0:00:52]} 33. h5 {[%clk 0:01:39]}  Ke6 {[%clk 0:00:53]} 34. h6 {[%clk 0:01:38]}  Kf6 {[%clk 0:00:54]} 35. h7 {[%clk 0:01:30]}  Rh1 {[%clk 0:00:53]} 36. h8=Q+ {[%clk 0:01:30]}  Rxh8 {[%clk 0:00:51]} 37. Bd4+ {[%clk 0:01:30]}  Kxg5 {[%clk 0:00:48]} 38. Bxh8 {[%clk 0:01:31]} 1-0


[Site "https://www.chess.com"]

[Event "Titled Tuesday Blitz May 16 Late 2023"]
[White "Stork, Oliver"]
[Black "Onslow, Alfie"]
[WhiteFideId "12955728"]
[BlackFideId "436976"]
[WhiteElo "2239"]
[BlackElo "2114"]
[Result "0-1"]
[Round "04"]
[TimeControl "180+2"]
[Date "2023.05.16"]
[WhiteClock "0:00:32"]
[BlackClock "0:00:41"]

1. e4 {[%clk 0:02:55]}  c5 {[%clk 0:02:54]} 2. Nc3 {[%clk 0:02:51]}  Nc6 {[%clk 0:02:53]} 3. g3 {[%clk 0:02:50]}  g6 {[%clk 0:02:53]} 4. Bg2 {[%clk 0:02:50]}  Bg7 {[%clk 0:02:53]} 5. d3 {[%clk 0:02:51]}  d6 {[%clk 0:02:53]} 6. Be3 {[%clk 0:02:51]}  e5 {[%clk 0:02:52]} 7. Qd2 {[%clk 0:02:51]}  Be6 {[%clk 0:02:43]} 8. f4 {[%clk 0:02:49]}  Nge7 {[%clk 0:02:42]} 9. Nge2 {[%clk 0:02:47]}  O-O {[%clk 0:02:42]} 10. O-O {[%clk 0:02:48]}  Nd4 {[%clk 0:02:41]} 11. Nd1 {[%clk 0:02:44]}  Bg4 {[%clk 0:02:34]} 12. Nc1 {[%clk 0:02:44]}  b5 {[%clk 0:02:22]} 13. c3 {[%clk 0:02:44]}  Ndc6 {[%clk 0:02:21]} 14. h3 {[%clk 0:02:44]}  Be6 {[%clk 0:02:20]} 15. Nf2 {[%clk 0:02:42]}  d5 {[%clk 0:02:17]} 16. Bxc5 {[%clk 0:02:40]}  d4 {[%clk 0:02:15]} 17. Ne2 {[%clk 0:02:32]}  Rc8 {[%clk 0:02:14]} 18. Bxe7 {[%clk 0:02:27]}  Qxe7 {[%clk 0:02:12]} 19. fxe5 {[%clk 0:02:25]}  Bxe5 {[%clk 0:02:11]} 20. Rac1 {[%clk 0:02:21]}  Bxa2 {[%clk 0:02:04]} 21. Ng4 {[%clk 0:02:09]}  Bg7 {[%clk 0:02:02]} 22. Nf4 {[%clk 0:02:02]}  Be6 {[%clk 0:01:53]} 23. Nh2 {[%clk 0:01:50]}  Rfd8 {[%clk 0:01:49]} 24. Nf3 {[%clk 0:01:49]}  dxc3 {[%clk 0:01:38]} 25. bxc3 {[%clk 0:01:48]}  Ne5 {[%clk 0:01:37]} 26. Nxe5 {[%clk 0:01:42]}  Bxe5 {[%clk 0:01:38]} 27. d4 {[%clk 0:01:42]}  Bc4 {[%clk 0:01:37]} 28. Rfe1 {[%clk 0:01:41]}  Bg7 {[%clk 0:01:37]} 29. Qb2 {[%clk 0:01:33]}  a5 {[%clk 0:01:34]} 30. Ra1 {[%clk 0:01:30]}  a4 {[%clk 0:01:34]} 31. Nd5 {[%clk 0:01:20]}  Bxd5 {[%clk 0:01:05]} 32. exd5 {[%clk 0:01:19]}  Qc7 {[%clk 0:01:06]} 33. Qxb5 {[%clk 0:01:17]}  Qxg3 {[%clk 0:01:06]} 34. Qxa4 {[%clk 0:01:03]}  Rxc3 {[%clk 0:00:56]} 35. Rf1 {[%clk 0:00:51]}  Rd3 {[%clk 0:00:51]} 36. Rad1 {[%clk 0:00:45]}  Bxd4+ {[%clk 0:00:50]} 37. Kh1 {[%clk 0:00:39]}  Be5 {[%clk 0:00:47]} 38. Kg1 {[%clk 0:00:39]}  Qh2+ {[%clk 0:00:42]} 39. Kf2 {[%clk 0:00:39]}  Bg3+ {[%clk 0:00:42]} 40. Ke2 {[%clk 0:00:32]}  Rxd1 {[%clk 0:00:41]} 0-1


[Site "https://www.chess.com"]

[Event "Titled Tuesday Blitz May 16 Late 2023"]
[White "Rose, Felix"]
[Black "Tomaszewski, Kacper"]
[WhiteFideId "5105722"]
[BlackFideId "1127373"]
[WhiteElo "2039"]
[BlackElo "2211"]
[Result "1/2-1/2"]
[Round "04"]
[TimeControl "180+2"]
[Date "2023.05.16"]
[WhiteClock "0:00:29"]
[BlackClock "0:00:06"]

1. e4 {[%clk 0:03:00]}  c5 {[%clk 0:02:57]} 2. Nf3 {[%clk 0:03:00]}  Nc6 {[%clk 0:02:56]} 3. d4 {[%clk 0:03:00]}  cxd4 {[%clk 0:02:56]} 4. Nxd4 {[%clk 0:03:01]}  Nf6 {[%clk 0:02:57]} 5. Nc3 {[%clk 0:03:01]}  d6 {[%clk 0:02:57]} 6. Bg5 {[%clk 0:02:59]}  g6 {[%clk 0:02:57]} 7. Bxf6 {[%clk 0:02:55]}  exf6 {[%clk 0:02:58]} 8. Bb5 {[%clk 0:02:54]}  Bd7 {[%clk 0:02:57]} 9. O-O {[%clk 0:02:40]}  Bg7 {[%clk 0:02:52]} 10. Nde2 {[%clk 0:02:38]}  O-O {[%clk 0:02:49]} 11. Qxd6 {[%clk 0:02:37]}  f5 {[%clk 0:02:41]} 12. Rad1 {[%clk 0:02:25]}  Be6 {[%clk 0:02:38]} 13. Bxc6 {[%clk 0:02:17]}  Qxd6 {[%clk 0:02:35]} 14. Rxd6 {[%clk 0:02:18]}  bxc6 {[%clk 0:02:35]} 15. Rxc6 {[%clk 0:02:14]}  fxe4 {[%clk 0:02:35]} 16. Nf4 {[%clk 0:02:02]}  Bf5 {[%clk 0:02:25]} 17. Re1 {[%clk 0:01:58]}  Rfc8 {[%clk 0:02:20]} 18. Rxc8+ {[%clk 0:01:53]}  Rxc8 {[%clk 0:02:21]} 19. Nfd5 {[%clk 0:01:53]}  Kf8 {[%clk 0:02:04]} 20. h3 {[%clk 0:01:36]}  Rc4 {[%clk 0:01:23]} 21. g4 {[%clk 0:01:35]}  Be6 {[%clk 0:01:22]} 22. Nf4 {[%clk 0:01:22]}  Bxc3 {[%clk 0:01:11]} 23. Nxe6+ {[%clk 0:01:22]}  fxe6 {[%clk 0:01:11]} 24. bxc3 {[%clk 0:01:23]}  Rxc3 {[%clk 0:01:07]} 25. Rxe4 {[%clk 0:01:22]}  Rxc2 {[%clk 0:01:08]} 26. Rxe6 {[%clk 0:01:12]}  Rxa2 {[%clk 0:01:07]} 27. Rc6 {[%clk 0:01:12]}  Kg7 {[%clk 0:01:05]} 28. g5 {[%clk 0:01:10]}  a5 {[%clk 0:01:03]} 29. Rc7+ {[%clk 0:01:09]}  Kg8 {[%clk 0:01:04]} 30. Ra7 {[%clk 0:01:10]}  a4 {[%clk 0:01:04]} 31. Kg2 {[%clk 0:01:10]}  a3 {[%clk 0:01:03]} 32. Kg3 {[%clk 0:01:10]}  Ra1 {[%clk 0:01:01]} 33. f3 {[%clk 0:01:10]}  a2 {[%clk 0:00:52]} 34. Kf4 {[%clk 0:01:10]}  Kf8 {[%clk 0:00:44]} 35. h4 {[%clk 0:01:10]}  Ke8 {[%clk 0:00:42]} 36. Ra6 {[%clk 0:00:52]}  Ke7 {[%clk 0:00:40]} 37. Ra5 {[%clk 0:00:50]}  Ke6 {[%clk 0:00:40]} 38. Ra8 {[%clk 0:00:48]}  Kd5 {[%clk 0:00:40]} 39. Ra7 {[%clk 0:00:46]}  Kc4 {[%clk 0:00:40]} 40. Ra8 {[%clk 0:00:46]}  Kd3 {[%clk 0:00:40]} 41. Ra7 {[%clk 0:00:44]}  Ke2 {[%clk 0:00:39]} 42. Ra8 {[%clk 0:00:43]}  Kf2 {[%clk 0:00:40]} 43. Ra7 {[%clk 0:00:39]}  Kg2 {[%clk 0:00:40]} 44. Ra8 {[%clk 0:00:38]}  Kh3 {[%clk 0:00:40]} 45. Ra7 {[%clk 0:00:35]}  Kg2 {[%clk 0:00:35]} 46. Ra6 {[%clk 0:00:33]}  Kh2 {[%clk 0:00:31]} 47. Ra5 {[%clk 0:00:32]}  Kh1 {[%clk 0:00:26]} 48. Ra6 {[%clk 0:00:31]}  Kg2 {[%clk 0:00:24]} 49. Ra5 {[%clk 0:00:30]}  Kf2 {[%clk 0:00:24]} 50. Ra7 {[%clk 0:00:30]}  Ke2 {[%clk 0:00:24]} 51. Ra6 {[%clk 0:00:30]}  Kd3 {[%clk 0:00:23]} 52. Ra7 {[%clk 0:00:30]}  Kc4 {[%clk 0:00:23]} 53. Ra8 {[%clk 0:00:31]}  Kb3 {[%clk 0:00:23]} 54. Rb8+ {[%clk 0:00:31]}  Kc3 {[%clk 0:00:23]} 55. Rc8+ {[%clk 0:00:31]}  Kb4 {[%clk 0:00:22]} 56. Ra8 {[%clk 0:00:31]}  Kc5 {[%clk 0:00:20]} 57. Ra7 {[%clk 0:00:30]}  Kd5 {[%clk 0:00:20]} 58. Ra8 {[%clk 0:00:30]}  Kc6 {[%clk 0:00:20]} 59. Ra7 {[%clk 0:00:30]}  Kb6 {[%clk 0:00:20]} 60. Ra8 {[%clk 0:00:30]}  Kc5 {[%clk 0:00:15]} 61. Ra7 {[%clk 0:00:30]}  Kd5 {[%clk 0:00:16]} 62. Ra8 {[%clk 0:00:30]}  Rh1 {[%clk 0:00:14]} 63. Rxa2 {[%clk 0:00:30]}  Rxh4+ {[%clk 0:00:14]} 64. Kg3 {[%clk 0:00:30]}  Rh1 {[%clk 0:00:11]} 65. Kg2 {[%clk 0:00:30]}  Rh5 {[%clk 0:00:10]} 66. f4 {[%clk 0:00:29]}  Ke4 {[%clk 0:00:11]} 67. Kg3 {[%clk 0:00:29]}  Rh1 {[%clk 0:00:10]} 68. Re2+ {[%clk 0:00:29]}  Kd5 {[%clk 0:00:07]} 69. Re7 {[%clk 0:00:29]}  Rg1+ {[%clk 0:00:05]} 70. Kf2 {[%clk 0:00:28]}  Rh1 {[%clk 0:00:05]} 71. Kg3 {[%clk 0:00:29]}  Rg1+ {[%clk 0:00:05]} 72. Kh2 {[%clk 0:00:28]}  Rg4 {[%clk 0:00:04]} 73. Rxh7 {[%clk 0:00:27]}  Rxf4 {[%clk 0:00:04]} 74. Kg3 {[%clk 0:00:27]}  Ra4 {[%clk 0:00:01]} 75. Rf7 {[%clk 0:00:26]}  Ke6 {[%clk 0:00:01]} 76. Rf6+ {[%clk 0:00:26]}  Ke7 {[%clk 0:00:01]} 77. Rxg6 {[%clk 0:00:27]}  Kf7 {[%clk 0:00:02]} 78. Rf6+ {[%clk 0:00:27]}  Kg7 {[%clk 0:00:02]} 79. Rf4 {[%clk 0:00:27]}  Rxf4 {[%clk 0:00:02]} 80. Kxf4 {[%clk 0:00:28]}  Kg6 {[%clk 0:00:03]} 81. Kg4 {[%clk 0:00:28]}  Kg7 {[%clk 0:00:04]} 82. Kf5 {[%clk 0:00:29]}  Kf7 {[%clk 0:00:04]} 83. Kg4 {[%clk 0:00:28]}  Kg7 {[%clk 0:00:05]} 84. Kh5 {[%clk 0:00:28]}  Kh7 {[%clk 0:00:05]} 85. Kh4 {[%clk 0:00:28]}  Kg6 {[%clk 0:00:06]} 86. Kg4 {[%clk 0:00:29]}  Kg7 {[%clk 0:00:06]} 1/2-1/2


[Site "https://www.chess.com"]

[Event "Titled Tuesday Blitz May 16 Late 2023"]
[White "KorolDimitriy75"]
[Black "Ward, Ieuan C"]
[BlackFideId "406627"]
[WhiteElo "2457"]
[BlackElo "2296"]
[Result "1-0"]
[Round "04"]
[TimeControl "180+2"]
[Date "2023.05.16"]
[WhiteClock "0:00:12"]
[BlackClock "0:00:00"]

1. d4 {[%clk 0:03:00]}  Nf6 {[%clk 0:02:59]} 2. c4 {[%clk 0:03:01]}  e6 {[%clk 0:02:59]} 3. Nc3 {[%clk 0:03:01]}  d5 {[%clk 0:02:58]} 4. Bg5 {[%clk 0:03:01]}  Be7 {[%clk 0:02:58]} 5. cxd5 {[%clk 0:03:01]}  exd5 {[%clk 0:02:58]} 6. e3 {[%clk 0:03:01]}  O-O {[%clk 0:02:58]} 7. Bd3 {[%clk 0:03:01]}  c6 {[%clk 0:02:59]} 8. Qc2 {[%clk 0:03:01]}  Nbd7 {[%clk 0:02:59]} 9. Nge2 {[%clk 0:03:00]}  Re8 {[%clk 0:03:00]} 10. f3 {[%clk 0:03:00]}  Nf8 {[%clk 0:03:00]} 11. O-O {[%clk 0:03:00]}  Ne6 {[%clk 0:03:00]} 12. Bh4 {[%clk 0:03:00]}  g6 {[%clk 0:03:00]} 13. Rad1 {[%clk 0:02:58]}  Ng7 {[%clk 0:03:00]} 14. h3 {[%clk 0:02:52]}  Nf5 {[%clk 0:02:57]} 15. Bf2 {[%clk 0:02:52]}  c5 {[%clk 0:02:52]} 16. Bb5 {[%clk 0:01:54]}  Bd7 {[%clk 0:02:39]} 17. Bxd7 {[%clk 0:01:47]}  Qxd7 {[%clk 0:02:39]} 18. dxc5 {[%clk 0:01:46]}  Qc6 {[%clk 0:01:46]} 19. b4 {[%clk 0:01:45]}  a5 {[%clk 0:01:43]} 20. a3 {[%clk 0:01:40]}  axb4 {[%clk 0:01:37]} 21. axb4 {[%clk 0:01:41]}  b6 {[%clk 0:01:09]} 22. Nd4 {[%clk 0:01:33]}  Qc8 {[%clk 0:01:09]} 23. Nxf5 {[%clk 0:01:29]}  Qxf5 {[%clk 0:01:08]} 24. Qxf5 {[%clk 0:01:28]}  gxf5 {[%clk 0:01:09]} 25. Nxd5 {[%clk 0:01:26]}  bxc5 {[%clk 0:01:09]} 26. Nxe7+ {[%clk 0:00:55]}  Rxe7 {[%clk 0:01:07]} 27. bxc5 {[%clk 0:00:56]}  Rc8 {[%clk 0:01:06]} 28. Rd6 {[%clk 0:00:45]}  Ne8 {[%clk 0:00:36]} 29. Rd5 {[%clk 0:00:44]}  Ng7 {[%clk 0:00:35]} 30. Rc1 {[%clk 0:00:39]}  Rec7 {[%clk 0:00:31]} 31. Bg3 {[%clk 0:00:31]}  Rc6 {[%clk 0:00:31]} 32. Bd6 {[%clk 0:00:27]}  Ne8 {[%clk 0:00:28]} 33. Rcd1 {[%clk 0:00:27]}  Nxd6 {[%clk 0:00:17]} 34. cxd6 {[%clk 0:00:28]}  Rd8 {[%clk 0:00:17]} 35. Rxf5 {[%clk 0:00:26]}  Rcxd6 {[%clk 0:00:17]} 36. Rxd6 {[%clk 0:00:26]}  Rxd6 {[%clk 0:00:18]} 37. e4 {[%clk 0:00:27]}  f6 {[%clk 0:00:17]} 38. h4 {[%clk 0:00:27]}  Kg7 {[%clk 0:00:18]} 39. Kh2 {[%clk 0:00:27]}  Rd2 {[%clk 0:00:18]} 40. Kh3 {[%clk 0:00:27]}  Rd3 {[%clk 0:00:18]} 41. Rd5 {[%clk 0:00:26]}  Rc3 {[%clk 0:00:18]} 42. Kg3 {[%clk 0:00:26]}  Rb3 {[%clk 0:00:19]} 43. Kf4 {[%clk 0:00:26]}  Rb2 {[%clk 0:00:19]} 44. g3 {[%clk 0:00:24]}  Rb3 {[%clk 0:00:19]} 45. Rd7+ {[%clk 0:00:23]}  Kg6 {[%clk 0:00:18]} 46. Rd6 {[%clk 0:00:23]}  Kg7 {[%clk 0:00:16]} 47. Kg4 {[%clk 0:00:20]}  Rc3 {[%clk 0:00:16]} 48. h5 {[%clk 0:00:19]}  Rb3 {[%clk 0:00:15]} 49. f4 {[%clk 0:00:18]}  Rb4 {[%clk 0:00:14]} 50. Kf5 {[%clk 0:00:18]}  Rb3 {[%clk 0:00:14]} 51. Rxf6 {[%clk 0:00:16]}  Rxg3 {[%clk 0:00:14]} 52. h6+ {[%clk 0:00:16]}  Kg8 {[%clk 0:00:13]} 53. e5 {[%clk 0:00:17]}  Rh3 {[%clk 0:00:04]} 54. Ke6 {[%clk 0:00:14]}  Ra3 {[%clk 0:00:01]} 55. Kf5 {[%clk 0:00:12]}  Ra6 {[%clk 0:00:00]} 56. Rxa6 {[%clk 0:00:12]} 1-0


[Site "https://www.chess.com"]

[Event "Titled Tuesday Blitz May 16 Late 2023"]
[White "Avalos Parra, Joao"]
[Black "Magallanes, Rey Jomar"]
[WhiteFideId "3402541"]
[BlackFideId "5205948"]
[WhiteElo "2173"]
[BlackElo "2237"]
[Result "0-1"]
[Round "04"]
[TimeControl "180+2"]
[Date "2023.05.16"]
[WhiteClock "0:00:16"]
[BlackClock "0:01:54"]

1. d4 {[%clk 0:03:00]}  d5 {[%clk 0:02:59]} 2. c4 {[%clk 0:03:01]}  e6 {[%clk 0:02:59]} 3. Nf3 {[%clk 0:03:01]}  Nf6 {[%clk 0:03:00]} 4. Nc3 {[%clk 0:03:02]}  Nbd7 {[%clk 0:03:00]} 5. Bf4 {[%clk 0:03:02]}  dxc4 {[%clk 0:02:59]} 6. e3 {[%clk 0:03:02]}  Nb6 {[%clk 0:03:00]} 7. Be2 {[%clk 0:02:58]}  c6 {[%clk 0:02:59]} 8. a4 {[%clk 0:02:56]}  a5 {[%clk 0:02:55]} 9. O-O {[%clk 0:02:55]}  Be7 {[%clk 0:02:53]} 10. h3 {[%clk 0:02:55]}  Nfd5 {[%clk 0:02:52]} 11. Bh2 {[%clk 0:02:55]}  O-O {[%clk 0:02:50]} 12. Rc1 {[%clk 0:02:53]}  Nxc3 {[%clk 0:02:48]} 13. bxc3 {[%clk 0:02:52]}  Bd7 {[%clk 0:02:45]} 14. Ne5 {[%clk 0:02:51]}  Be8 {[%clk 0:02:38]} 15. Nxc4 {[%clk 0:02:48]}  Nd5 {[%clk 0:02:38]} 16. e4 {[%clk 0:02:41]}  Nf6 {[%clk 0:02:38]} 17. Bd3 {[%clk 0:02:38]}  c5 {[%clk 0:02:37]} 18. Bc2 {[%clk 0:02:24]}  b5 {[%clk 0:02:32]} 19. Ne5 {[%clk 0:02:06]}  b4 {[%clk 0:02:27]} 20. cxb4 {[%clk 0:02:03]}  axb4 {[%clk 0:02:27]} 21. dxc5 {[%clk 0:01:54]}  Bxc5 {[%clk 0:02:28]} 22. Qxd8 {[%clk 0:01:46]}  Rxd8 {[%clk 0:02:26]} 23. Bb3 {[%clk 0:01:43]}  Bd4 {[%clk 0:02:21]} 24. Rfe1 {[%clk 0:01:06]}  Bc3 {[%clk 0:02:18]} 25. Re2 {[%clk 0:01:03]}  Ra8 {[%clk 0:02:13]} 26. Nd3 {[%clk 0:00:32]}  Bxa4 {[%clk 0:02:07]} 27. Bxa4 {[%clk 0:00:25]}  Rxa4 {[%clk 0:02:07]} 28. Nc5 {[%clk 0:00:25]}  Ra5 {[%clk 0:02:03]} 29. Nb7 {[%clk 0:00:22]}  Rb5 {[%clk 0:01:59]} 30. Nd6 {[%clk 0:00:22]}  Rc5 {[%clk 0:01:58]} 31. f3 {[%clk 0:00:19]}  Bd4+ {[%clk 0:01:57]} 32. Kf1 {[%clk 0:00:16]}  Rxc1+ {[%clk 0:01:57]} 33. Re1 {[%clk 0:00:17]}  Rxe1+ {[%clk 0:01:57]} 34. Kxe1 {[%clk 0:00:16]}  b3 {[%clk 0:01:54]} 0-1


[Site "https://www.chess.com"]